lending/lending_fUSD_20250429
["ID","MTS","AMOUNT","RATE_DAILY","PERIOD"]
[359333276,1745933445956,-500.0,0.00027645,2]
[359333277,1745933445965,-500.0,0.00027645,2]
[359333278,1745933445975,-242.28311563,0.0002765,2]
[359333280,1745933445985,-242.28311563,0.00027654,2]
[359333281,1745933445994,-500.0,0.00027655,2]
[359333283,1745933446004,-226.84498473,0.0002766,2]
[359333285,1745933446014,-189.5752378,0.00027675,2]
[359333286,1745933446024,-250.98326424,0.00027675,2]
[359333287,1745933446033,-500.0,0.00027675,2]
[359333289,1745933446042,-500.0,0.00027676,2]
[359333290,1745933446053,-500.0,0.00027676,2]
[359333291,1745933446064,-1534.77666023,0.00027682,2]
[359333292,1745933446074,-500.0,0.00027685,2]
[359333293,1745933446084,-500.0,0.00027685,2]
[359333294,1745933446094,-500.0,0.00027695,2]
[359333295,1745933446103,-750.0,0.000277,2]
[359333296,1745933446112,-500.0,0.00027703,2]
[359333297,1745933446123,-500.0,0.00027703,2]
[359333298,1745933446133,-2707.0,0.00027726,2]
[359333299,1745933446142,-151.0,0.00027744,7]
[359333300,1745933446152,-151.0,0.00027744,7]
[359333301,1745933446161,-151.0,0.00027744,7]
[359333302,1745933446171,-116790.39422569,0.00027745,2]
[359333303,1745933446207,-705.05576367,0.00027745,2]
[359333304,1745933447194,-151.0,0.00024173,2]
[359333305,1745933447204,-922.0,0.00026921,2]
[359333306,1745933447213,-470.0,0.00027509,2]
[359333307,1745933447222,-470.0,0.00027603,2]
[359333308,1745933447232,-26787.0,0.00027745,2]
[359333309,1745933447331,-342.33026432,0.00027745,2]
[359333310,1745933447351,-1583.17176755,0.00027745,2]
[359333311,1745933447727,-500.0,0.00027509,2]
[359333312,1745933447737,-500.0,0.00027542,2]
[359333313,1745933447747,-500.0,0.00027603,2]
[359333314,1745933447757,-500.0,0.00027603,2]
[359333315,1745933447767,-500.0,0.00027603,2]
[359333316,1745933447776,-470.0,0.00027603,2]
[359333317,1745933447977,-500.0,0.00027604,2]
[359333318,1745933447989,-500.0,0.00027604,2]
[359333319,1745933447999,-500.0,0.00027604,2]
[359333320,1745933448009,-3536.34929577,0.00027745,2]
[359333321,1745933448018,-43303.73947437,0.00027745,2]
[359333322,1745933448030,-2834.0,0.00027745,2]
[359333323,1745933448075,-781.67057815,0.00027745,2]
[359333324,1745933448090,-2720.7306,0.00027745,2]
[359333325,1745933448166,-748.97970131,0.00027745,2]
[359333326,1745933448178,-909.55000001,0.00027745,2]
[359333332,1745933739724,-200.0,0.000368,30]
[359333333,1745933925279,400.0,0.00036986,60]
[359333334,1745933937674,187.8201769,0.00026223,4]
[359333336,1745933982209,187.8201769,0.00026223,4]
[359333343,1745934027178,187.8201769,0.00026223,4]
[359333344,1745934048610,1280.69959045,0.0003698,120]
[359333345,1745934150373,1000.0,0.00036,60]
[359333346,1745934164157,153.3,0.00036986,60]
[359333347,1745934192430,1000.0,0.00036,90]
[359333365,1745934631720,-200.0,0.00024206,2]
[359333366,1745934631730,-320.19,0.00024656,2]
[359333367,1745934631739,-564.380097,0.00026032,2]
[359333368,1745934631748,-207.4,0.00026164,2]
[359333369,1745934631758,-176.10351318,0.00026393,2]
[359333370,1745934631767,-183.52,0.00026436,2]
[359333371,1745934631777,-158.73,0.00026493,2]
[359333372,1745934631786,-1000.0,0.00026493,2]
[359333373,1745934631795,-200.0,0.00026561,2]
[359333374,1745934631805,-151.0,0.00026754,2]
[359333375,1745934631814,-151.0,0.00026756,2]
[359333376,1745934631823,-151.0,0.00026756,2]
[359333377,1745934631832,-151.0,0.00026757,2]
[359333378,1745934631842,-151.0,0.00026759,2]
[359333379,1745934631851,-320.19,0.0002692,2]
[359333380,1745934631861,-152.02,0.00027397,2]
[359333381,1745934631870,-288.49,0.00027397,2]
[359333382,1745934631879,-1200.0,0.00027407,2]
[359333383,1745934631889,-545.64968291,0.00027408,2]
[359333384,1745934631899,-162.67,0.00027454,2]
[359333385,1745934631908,-15745.26959191,0.00027499,2]
[359333386,1745934631919,-1809.41886001,0.00027499,2]
[359333387,1745934631938,-478.81859161,0.00027499,2]
[359333388,1745934631949,-449.32685517,0.00027499,2]
[359333389,1745934631960,-5513.02961724,0.00027499,2]
[359333390,1745934631981,-512.17759608,0.00027499,2]
[359333391,1745934631993,-420.816,0.00027499,2]
[359333392,1745934632064,-4706.58651078,0.00027499,2]
[359333393,1745934632074,-1505.26309651,0.000275,2]
[359333394,1745934632084,-470.0,0.00027508,2]
[359333395,1745934632093,-470.0,0.00027508,2]
[359333396,1745934632105,-585.21,0.00027508,2]
[359333397,1745934632114,-430.0,0.00027508,2]
[359333398,1745934632123,-470.0,0.00027508,2]
[359333400,1745934632133,-937.45,0.00027508,2]
[359333402,1745934632142,-634.76,0.00027508,2]
[359333404,1745934632153,-470.0,0.00027508,2]
[359333406,1745934632162,-470.0,0.00027508,2]
[359333409,1745934632171,-470.0,0.00027508,2]
[359333411,1745934632183,-470.0,0.00027508,2]
[359333412,1745934632193,-470.0,0.00027508,2]
[359333413,1745934632202,-470.0,0.00027508,2]
[359333414,1745934632212,-470.0,0.00027508,2]
[359333415,1745934632220,-481.84,0.00027508,2]
[359333416,1745934632230,-470.0,0.00027508,2]
[359333417,1745934632239,-470.0,0.00027508,2]
[359333418,1745934632248,-470.0,0.00027508,2]
[359333419,1745934632257,-470.0,0.00027508,2]
[359333420,1745934632267,-470.0,0.00027508,2]
[359333421,1745934632277,-6159.50260413,0.00027508,2]
[359333456,1745934637785,-151.0,0.0002676,2]
[359333457,1745934637796,-796.0108913,0.00027508,2]
[359333458,1745934637807,-537.13002854,0.00027508,2]
[359333459,1745934637818,-1562.94963903,0.00027508,2]
[359333460,1745934637827,-470.0,0.00027508,2]
[359333461,1745934637837,-470.0,0.00027508,2]
[359333462,1745934637846,-519.32,0.00027508,2]
[359333463,1745934637855,-470.0,0.00027508,2]
[359333464,1745934637865,-1037.389624,0.00027508,2]
[359333465,1745934637874,-553.03,0.00027508,2]
[359333466,1745934637883,-470.0,0.00027508,2]
[359333467,1745934637889,-470.0,0.00027508,2]
[359333468,1745934637896,-654.43461,0.00027508,2]
[359333469,1745934637906,-470.0,0.00027508,2]
[359333470,1745934637915,-508.04,0.00027508,2]
[359333471,1745934637925,-470.0,0.00027508,2]
[359333472,1745934637934,-470.0,0.00027508,2]
[359333473,1745934637943,-255.0,0.00027508,2]
[359333474,1745934637952,-470.0,0.00027508,2]
[359333475,1745934637962,-470.0,0.00027508,2]
[359333476,1745934637971,-577.15,0.00027508,2]
[359333477,1745934637979,-536.3906881,0.00027508,2]
[359333478,1745934637991,-10.1593119,0.00027508,2]
[359333479,1745934638000,-470.0,0.00027508,2]
[359333480,1745934638009,-263.57,0.00027508,2]
[359333481,1745934638019,-470.0,0.00027508,2]
[359333482,1745934638028,-535.16,0.00027508,2]
[359333483,1745934638037,-470.0,0.00027508,2]
[359333484,1745934638047,-589.2,0.00027508,2]
[359333485,1745934638056,-811.1,0.00027508,2]
[359333486,1745934638065,-470.0,0.00027508,2]
[359333488,1745934638075,-470.0,0.00027508,2]
[359333489,1745934638084,-470.0,0.00027508,2]
[359333490,1745934638093,-684.62,0.00027508,2]
[359333491,1745934638104,-470.0,0.00027508,2]
[359333492,1745934638114,-470.0,0.00027508,2]
[359333493,1745934638123,-470.0,0.00027508,2]
[359333494,1745934638133,-470.0,0.00027508,2]
[359333495,1745934638143,-858.82,0.00027508,2]
[359333496,1745934638153,-470.0,0.00027508,2]
[359333497,1745934638162,-548.96,0.00027508,2]
[359333498,1745934638171,-478.32,0.00027508,2]
[359333499,1745934638181,-470.0,0.00027508,2]
[359333501,1745934638190,-470.0,0.00027508,2]
[359333503,1745934638200,-470.0,0.00027508,2]
[359333504,1745934638209,-470.0,0.00027508,2]
[359333505,1745934638219,-470.0,0.00027508,2]
[359333506,1745934638229,-470.0,0.00027508,2]
[359333507,1745934638238,-470.0,0.00027508,2]
[359333510,1745934638248,-400.0,0.00027508,2]
[359333513,1745934638257,-470.0,0.00027508,2]
[359333516,1745934638266,-525.92,0.00027508,2]
[359333518,1745934638275,-470.0,0.00027508,2]
[359333520,1745934638285,-470.0,0.00027508,2]
[359333522,1745934638296,-559.96,0.00027508,2]
[359333524,1745934638305,-470.0,0.00027508,2]
[359333526,1745934638314,-3660.02072175,0.00027508,2]
[359333532,1745934638367,-1889.60927825,0.00027508,2]
[359333534,1745934638377,-115.22444994,0.00027508,2]
[359333537,1745934638388,-354.77555006,0.00027508,2]
[359333539,1745934638397,-470.0,0.00027508,2]
[359333540,1745934638408,-470.0,0.00027508,2]
[359333543,1745934638419,-470.0,0.00027508,2]
[359333544,1745934638428,-516.97,0.00027508,2]
[359333547,1745934638438,-43.75015824,0.00027508,2]
[359333702,1745934639893,-426.24984176,0.00027508,2]
[359333704,1745934639904,-500.0,0.00027508,2]
[359333706,1745934639913,-470.0,0.00027508,2]
[359333708,1745934639923,-470.0,0.00027508,2]
[359333710,1745934639932,-1775.59,0.00027508,2]
[359333712,1745934639941,-470.0,0.00027508,2]
[359333714,1745934639951,-470.0,0.00027508,2]
[359333716,1745934639960,-470.0,0.00027508,2]
[359333718,1745934639969,-470.0,0.00027508,2]
[359333720,1745934639978,-470.0,0.00027508,2]
[359333722,1745934639988,-530.1,0.00027508,2]
[359333724,1745934639997,-470.0,0.00027508,2]
[359333726,1745934640007,-250.0,0.00027508,2]
[359333728,1745934640016,-470.0,0.00027508,2]
[359333730,1745934640025,-930.41,0.00027508,2]
[359333732,1745934640035,-470.0,0.00027508,2]
[359333734,1745934640044,-470.0,0.00027508,2]
[359333736,1745934640053,-2146.78,0.00027508,2]
[359333738,1745934640063,-470.0,0.00027508,2]
[359333740,1745934640072,-470.0,0.00027508,2]
[359333742,1745934640081,-470.0,0.00027508,2]
[359333744,1745934640090,-470.0,0.00027508,2]
[359333746,1745934640100,-625.52,0.00027508,2]
[359333748,1745934640112,-470.0,0.00027508,2]
[359333750,1745934640122,-470.0,0.00027508,2]
[359333752,1745934640131,-470.0,0.00027508,2]
[359333754,1745934640141,-1439.78,0.00027508,2]
[359333756,1745934640151,-470.0,0.00027508,2]
[359333758,1745934640161,-470.0,0.00027508,2]
[359333760,1745934640171,-470.0,0.00027508,2]
[359333762,1745934640181,-470.0,0.00027508,2]
[359333764,1745934640191,-470.0,0.00027508,2]
[359333766,1745934640201,-470.0,0.00027508,2]
[359333768,1745934640210,-470.0,0.00027508,2]
[359333770,1745934640219,-470.0,0.00027508,2]
[359333772,1745934640229,-580.52,0.00027508,2]
[359333774,1745934640239,-470.0,0.00027508,2]
[359333776,1745934640248,-470.0,0.00027508,2]
[359333778,1745934640258,-814.42,0.00027508,2]
[359333780,1745934640268,-470.0,0.00027508,2]
[359333782,1745934640278,-470.0,0.00027508,2]
[359333784,1745934640287,-506.28,0.00027508,2]
[359333786,1745934640296,-470.0,0.00027508,2]
[359333788,1745934640305,-499.4,0.00027508,2]
[359333790,1745934640315,-1133.85,0.00027508,2]
[359333792,1745934640323,-470.0,0.00027508,2]
[359333794,1745934640332,-470.0,0.00027508,2]
[359333796,1745934640341,-648.78,0.00027508,2]
[359333798,1745934640350,-470.0,0.00027508,2]
[359333800,1745934640360,-470.0,0.00027508,2]
[359333802,1745934640369,-1044.68,0.00027508,2]
[359333804,1745934640378,-470.0,0.00027508,2]
[359333806,1745934640387,-470.0,0.00027508,2]
[359333808,1745934640397,-470.0,0.00027508,2]
[359333810,1745934640408,-470.0,0.00027508,2]
[359333812,1745934640417,-470.0,0.00027508,2]
[359333814,1745934640427,-756.33,0.00027508,2]
[359333816,1745934640436,-519.9,0.00027508,2]
[359333818,1745934640445,-470.0,0.00027508,2]
[359333820,1745934640455,-761.48,0.00027508,2]
[359333822,1745934640464,-470.0,0.00027508,2]
[359333824,1745934640474,-374.74784,0.00027508,2]
[359333826,1745934640483,-470.0,0.00027508,2]
[359333828,1745934640493,-470.0,0.00027508,2]
[359333830,1745934640502,-470.0,0.00027508,2]
[359333832,1745934640512,-721.83,0.00027508,2]
[359333834,1745934640521,-470.0,0.00027508,2]
[359333836,1745934640531,-470.0,0.00027508,2]
[359333838,1745934640540,-470.0,0.00027508,2]
[359333841,1745934640550,-470.0,0.00027508,2]
[359333842,1745934640560,-470.0,0.00027508,2]
[359333845,1745934640569,-488.83,0.00027508,2]
[359333847,1745934640578,-470.0,0.00027508,2]
[359333849,1745934640587,-470.0,0.00027508,2]
[359333851,1745934640597,-470.0,0.00027508,2]
[359333853,1745934640607,-581.17,0.00027508,2]
[359333855,1745934640616,-470.0,0.00027508,2]
[359333857,1745934640625,-470.0,0.00027508,2]
[359333858,1745934640635,-470.0,0.00027508,2]
[359333859,1745934640644,-470.0,0.00027508,2]
[359333860,1745934640654,-199.59079778,0.00027508,2]
[359333861,1745934640664,-470.0,0.00027508,2]
[359333862,1745934640674,-470.0,0.00027508,2]
[359333863,1745934640683,-435.1017221,0.00027508,2]
[359333864,1745934640693,-470.0,0.00027508,2]
[359333865,1745934640702,-1099.6,0.00027508,2]
[359333866,1745934640711,-719.33,0.00027508,2]
[359333867,1745934640721,-470.0,0.00027508,2]
[359333868,1745934640730,-470.0,0.00027508,2]
[359333869,1745934640740,-470.0,0.00027508,2]
[359333870,1745934640749,-470.0,0.00027508,2]
[359333871,1745934640759,-470.0,0.00027508,2]
[359333872,1745934640769,-666.42,0.00027508,2]
[359333873,1745934640778,-470.0,0.00027508,2]
[359333874,1745934640787,-514.31,0.00027508,2]
[359333875,1745934640797,-470.0,0.00027508,2]
[359333876,1745934640806,-587.12,0.00027508,2]
[359333877,1745934640815,-470.0,0.00027508,2]
[359333879,1745934640825,-470.0,0.00027508,2]
[359333881,1745934640834,-470.0,0.00027508,2]
[359333883,1745934640843,-470.0,0.00027508,2]
[359333885,1745934640853,-470.0,0.00027508,2]
[359333887,1745934640861,-470.0,0.00027508,2]
[359333889,1745934640871,-611.32,0.00027508,2]
[359333891,1745934640880,-817.52,0.00027508,2]
[359333893,1745934640889,-578.32,0.00027508,2]
[359333895,1745934640898,-561.6,0.00027508,2]
[359333897,1745934640908,-470.0,0.00027508,2]
[359333899,1745934640917,-470.0,0.00027508,2]
[359333901,1745934640926,-545.79,0.00027508,2]
[359333903,1745934640935,-470.0,0.00027508,2]
[359333905,1745934640944,-470.0,0.00027508,2]
[359333907,1745934640954,-470.0,0.00027508,2]
[359333909,1745934640963,-583.32,0.00027508,2]
[359333911,1745934640972,-592.19,0.00027508,2]
[359333913,1745934640981,-470.0,0.00027508,2]
[359333915,1745934640991,-470.0,0.00027508,2]
[359333917,1745934641000,-6419.6,0.00027508,2]
[359333919,1745934641009,-470.0,0.00027508,2]
[359333921,1745934641018,-474.37,0.00027508,2]
[359333923,1745934641027,-504.71,0.00027508,2]
[359333925,1745934641036,-639.04,0.00027508,2]
[359333927,1745934641045,-470.0,0.00027508,2]
[359333929,1745934641054,-597.4,0.00027508,2]
[359333931,1745934641063,-470.0,0.00027508,2]
[359333933,1745934641073,-1763.65,0.00027508,2]
[359333935,1745934641082,-537.88,0.00027508,2]
[359333937,1745934641092,-470.0,0.00027508,2]
[359333939,1745934641103,-470.0,0.00027508,2]
[359333942,1745934641122,-470.0,0.00027508,2]
[359333945,1745934641134,-470.0,0.00027508,2]
[359333947,1745934641144,-470.0,0.00027508,2]
[359333949,1745934641156,-470.0,0.00027508,2]
[359333951,1745934641166,-470.0,0.00027508,2]
[359333953,1745934641176,-470.0,0.00027508,2]
[359333955,1745934641186,-470.0,0.00027508,2]
[359333957,1745934641196,-470.0,0.00027508,2]
[359333959,1745934641206,-470.0,0.00027508,2]
[359333961,1745934641215,-470.0,0.00027508,2]
[359333963,1745934641225,-470.0,0.00027508,2]
[359333965,1745934641235,-470.0,0.00027508,2]
[359333967,1745934641244,-470.0,0.00027508,2]
[359333969,1745934641254,-470.0,0.00027508,2]
[359333972,1745934641264,-470.0,0.00027508,2]
[359333973,1745934641273,-470.0,0.00027508,2]
[359333976,1745934641283,-470.0,0.00027508,2]
[359333978,1745934641292,-535.65,0.00027508,2]
[359333980,1745934641301,-470.0,0.00027508,2]
[359333982,1745934641311,-470.0,0.00027508,2]
[359333984,1745934641320,-470.0,0.00027508,2]
[359333986,1745934641329,-470.0,0.00027508,2]
[359333988,1745934641339,-739.25,0.00027508,2]
[359333990,1745934641348,-155.80818447,0.00027509,2]
[359333992,1745934641357,-470.0,0.00027509,2]
[359333993,1745934641368,-470.0,0.00027509,2]
[359333995,1745934641378,-470.0,0.00027509,2]
[359333998,1745934641387,-302.96644181,0.00027509,2]
[359334000,1745934641397,-470.0,0.00027509,2]
[359334002,1745934641408,-470.0,0.00027509,2]
[359334004,1745934641418,-470.0,0.00027509,2]
[359334006,1745934641428,-1346.53,0.00027509,2]
[359334008,1745934641437,-470.0,0.00027509,2]
[359334010,1745934641447,-470.0,0.00027509,2]
[359334012,1745934641456,-470.0,0.00027509,2]
[359334014,1745934641465,-470.0,0.00027509,2]
[359334016,1745934641475,-470.0,0.00027509,2]
[359334018,1745934641484,-470.0,0.00027509,2]
[359334020,1745934641494,-470.0,0.00027509,2]
[359334022,1745934641503,-470.0,0.00027509,2]
[359334024,1745934641513,-470.0,0.00027509,2]
[359334026,1745934641523,-470.0,0.00027509,2]
[359334028,1745934641532,-470.0,0.00027509,2]
[359334030,1745934641542,-404.24354656,0.00027509,2]
[359334032,1745934641551,-470.0,0.00027509,2]
[359334034,1745934641560,-470.0,0.00027509,2]
[359334036,1745934641571,-470.0,0.00027509,2]
[359334038,1745934641581,-470.0,0.00027509,2]
[359334040,1745934641590,-470.0,0.00027509,2]
[359334042,1745934641600,-470.0,0.00027509,2]
[359334044,1745934641609,-470.0,0.00027509,2]
[359334046,1745934641619,-470.0,0.00027509,2]
[359334048,1745934641629,-470.0,0.00027509,2]
[359334050,1745934641639,-470.0,0.00027509,2]
[359334052,1745934641648,-470.0,0.00027509,2]
[359334054,1745934641659,-470.0,0.00027509,2]
[359334056,1745934641669,-470.0,0.00027509,2]
[359334058,1745934641679,-470.0,0.00027509,2]
[359334060,1745934641688,-470.0,0.00027509,2]
[359334063,1745934641699,-470.0,0.00027509,2]
[359334065,1745934641708,-485.3645845,0.00027509,2]
[359334066,1745934641717,-470.0,0.00027509,2]
[359334069,1745934641727,-470.0,0.00027509,2]
[359334071,1745934641737,-470.0,0.00027509,2]
[359334072,1745934641748,-470.0,0.00027509,2]
[359334075,1745934641758,-470.0,0.00027509,2]
[359334076,1745934641767,-569.17941539,0.00027509,2]
[359334078,1745934641777,-470.0,0.00027509,2]
[359334080,1745934641786,-470.0,0.00027509,2]
[359334083,1745934641796,-470.0,0.00027509,2]
[359334084,1745934641806,-470.0,0.00027509,2]
[359334086,1745934641815,-470.0,0.00027509,2]
[359334089,1745934641825,-470.0,0.00027509,2]
[359334090,1745934641834,-1717.02,0.00027509,2]
[359334093,1745934641844,-470.0,0.00027509,2]
[359334094,1745934641853,-470.0,0.00027509,2]
[359334096,1745934641863,-470.0,0.00027509,2]
[359334099,1745934641872,-470.0,0.00027509,2]
[359334101,1745934641882,-470.0,0.00027509,2]
[359334103,1745934641892,-470.0,0.00027509,2]
[359334105,1745934641901,-470.0,0.00027509,2]
[359334107,1745934641912,-529.71,0.00027509,2]
[359334109,1745934641922,-470.0,0.00027509,2]
[359334111,1745934641932,-470.0,0.00027509,2]
[359334113,1745934641941,-470.0,0.00027509,2]
[359334115,1745934641951,-470.0,0.00027509,2]
[359334117,1745934641960,-470.0,0.00027509,2]
[359334119,1745934641969,-470.0,0.00027509,2]
[359334120,1745934641979,-470.0,0.00027509,2]
[359334122,1745934641988,-470.0,0.00027509,2]
[359334125,1745934641997,-470.0,0.00027509,2]
[359334127,1745934642007,-470.0,0.00027509,2]
[359334128,1745934642015,-491.41,0.00027509,2]
[359334155,1745934642025,-482.84,0.00027509,2]
[359334158,1745934642271,-470.0,0.00027509,2]
[359334160,1745934642280,-470.0,0.00027509,2]
[359334162,1745934642290,-470.0,0.00027509,2]
[359334164,1745934642303,-584.95,0.00027509,2]
[359334166,1745934642313,-470.0,0.00027509,2]
[359334168,1745934642322,-470.0,0.00027509,2]
[359334170,1745934642331,-470.0,0.00027509,2]
[359334172,1745934642341,-470.0,0.00027509,2]
[359334174,1745934642351,-485.73,0.00027509,2]
[359334176,1745934642361,-470.0,0.00027509,2]
[359334178,1745934642370,-470.0,0.00027509,2]
[359334180,1745934642380,-470.0,0.00027509,2]
[359334182,1745934642389,-470.0,0.00027509,2]
[359334184,1745934642399,-470.0,0.00027509,2]
[359334186,1745934642410,-470.0,0.00027509,2]
[359334188,1745934642420,-497.37,0.00027509,2]
[359334190,1745934642430,-470.0,0.00027509,2]
[359334192,1745934642439,-491.86,0.00027509,2]
[359334194,1745934642450,-470.0,0.00027509,2]
[359334196,1745934642460,-470.0,0.00027509,2]
[359334198,1745934642469,-547.09,0.00027509,2]
[359334201,1745934642479,-470.0,0.00027509,2]
[359334205,1745934642489,-309.20817495,0.00027509,2]
[359334208,1745934642499,-1433.95,0.00027509,2]
[359334210,1745934642508,-470.0,0.00027509,2]
[359334212,1745934642518,-470.0,0.00027509,2]
[359334214,1745934642528,-517.46,0.00027509,2]
[359334216,1745934642537,-470.0,0.00027509,2]
[359334218,1745934642548,-470.0,0.00027509,2]
[359334220,1745934642558,-4603.8,0.00027509,2]
[359334222,1745934642567,-285.28870571,0.00027509,2]
[359334224,1745934642577,-470.0,0.00027509,2]
[359334226,1745934642587,-470.0,0.00027509,2]
[359334228,1745934642597,-470.0,0.00027509,2]
[359334230,1745934642606,-470.0,0.00027509,2]
[359334232,1745934642616,-470.0,0.00027509,2]
[359334234,1745934642626,-470.0,0.00027509,2]
[359334236,1745934642635,-470.0,0.00027509,2]
[359334238,1745934642644,-304.3352436,0.00027509,2]
[359334240,1745934642655,-470.0,0.00027509,2]
[359334242,1745934642665,-470.0,0.00027509,2]
[359334244,1745934642675,-470.0,0.00027509,2]
[359334246,1745934642686,-818.02,0.00027509,2]
[359334248,1745934642696,-470.0,0.00027509,2]
[359334251,1745934642706,-470.0,0.00027509,2]
[359334253,1745934642716,-470.0,0.00027509,2]
[359334255,1745934642725,-470.0,0.00027509,2]
[359334257,1745934642735,-470.0,0.00027509,2]
[359334259,1745934642745,-470.0,0.00027509,2]
[359334261,1745934642755,-470.0,0.00027509,2]
[359334263,1745934642765,-470.0,0.00027509,2]
[359334265,1745934642775,-470.0,0.00027509,2]
[359334267,1745934642785,-505.77,0.00027509,2]
[359334269,1745934642795,-470.0,0.00027509,2]
[359334271,1745934642805,-470.0,0.00027509,2]
[359334273,1745934642814,-470.0,0.00027509,2]
[359334275,1745934642824,-470.0,0.00027509,2]
[359334277,1745934642834,-470.0,0.00027509,2]
[359334279,1745934642844,-470.0,0.00027509,2]
[359334281,1745934642853,-470.0,0.00027509,2]
[359334283,1745934642863,-470.0,0.00027509,2]
[359334285,1745934642872,-470.0,0.00027509,2]
[359334287,1745934642882,-470.0,0.00027509,2]
[359334290,1745934642891,-470.0,0.00027509,2]
[359334292,1745934642901,-470.78841729,0.00027509,2]
[359334294,1745934642911,-470.0,0.00027509,2]
[359334296,1745934642921,-470.0,0.00027509,2]
[359334298,1745934642930,-470.0,0.00027509,2]
[359334300,1745934642940,-470.0,0.00027509,2]
[359334302,1745934642950,-824.6,0.00027509,2]
[359334304,1745934642959,-470.0,0.00027509,2]
[359334306,1745934642969,-470.0,0.00027509,2]
[359334308,1745934642979,-470.0,0.00027509,2]
[359334310,1745934642988,-232.4,0.00027509,2]
[359334313,1745934642998,-470.0,0.00027509,2]
[359334316,1745934643007,-470.0,0.00027509,2]
[359334320,1745934643019,-434.13352987,0.00027509,2]
[359334324,1745934643029,-470.0,0.00027509,2]
[359334327,1745934643038,-470.0,0.00027509,2]
[359334330,1745934643048,-470.0,0.00027509,2]
[359334333,1745934643058,-470.0,0.00027509,2]
[359334336,1745934643068,-470.0,0.00027509,2]
[359334339,1745934643077,-470.0,0.00027509,2]
[359334341,1745934643086,-470.0,0.00027509,2]
[359334343,1745934643095,-470.0,0.00027509,2]
[359334345,1745934643110,-470.0,0.00027509,2]
[359334347,1745934643120,-470.0,0.00027509,2]
[359334349,1745934643130,-470.0,0.00027509,2]
[359334351,1745934643140,-470.0,0.00027509,2]
[359334353,1745934643150,-470.0,0.00027509,2]
[359334355,1745934643161,-499.68,0.00027509,2]
[359334358,1745934643171,-470.0,0.00027509,2]
[359334360,1745934643183,-470.0,0.00027509,2]
[359334362,1745934643194,-470.0,0.00027509,2]
[359334365,1745934643203,-470.0,0.00027509,2]
[359334368,1745934643212,-470.0,0.00027509,2]
[359334370,1745934643222,-470.0,0.00027509,2]
[359334373,1745934643232,-470.0,0.00027509,2]
[359334377,1745934643241,-470.0,0.00027509,2]
[359334379,1745934643250,-470.0,0.00027509,2]
[359334382,1745934643260,-470.0,0.00027509,2]
[359334386,1745934643271,-400.0,0.00027509,2]
[359334389,1745934643280,-470.0,0.00027509,2]
[359334392,1745934643290,-573.16,0.00027509,2]
[359334394,1745934643298,-470.0,0.00027509,2]
[359334397,1745934643308,-470.0,0.00027509,2]